fUSD/lending_fUSD_20241003
["ID","MTS","AMOUNT","RATE_DAILY","PERIOD"]
[339775897,1727981442916,-500.0,0.0002,2]
[339775898,1727981442925,-500.0,0.0002,2]
[339775899,1727981442935,-500.0,0.0002,2]
[339775900,1727981442944,-500.0,0.0002,2]
[339775901,1727981442953,-500.0,0.0002,2]
[339775902,1727981442962,-500.0,0.0002,2]
[339775903,1727981442971,-500.0,0.0002,2]
[339775904,1727981442980,-500.0,0.0002,2]
[339775905,1727981442991,-500.0,0.0002,2]
[339775906,1727981443001,-500.0,0.0002,2]
[339775907,1727981443011,-500.0,0.0002,2]
[339775908,1727981443020,-500.0,0.0002,2]
[339775909,1727981443030,-500.0,0.0002,2]
[339775910,1727981443039,-500.0,0.0002,2]
[339775911,1727981443049,-500.0,0.0002,2]
[339775912,1727981443058,-500.0,0.0002,2]
[339775913,1727981443069,-500.0,0.0002,2]
[339775914,1727981443086,-500.0,0.0002,2]
[339775916,1727981443099,-500.0,0.0002,2]
[339775918,1727981443108,-500.0,0.0002,2]
[339775920,1727981443117,-500.0,0.0002,2]
[339775922,1727981443126,-500.0,0.0002,2]
[339775924,1727981443135,-500.0,0.0002,2]
[339775925,1727981443144,-500.0,0.0002,2]
[339775927,1727981443154,-500.0,0.0002,2]
[339775929,1727981443163,-500.0,0.0002,2]
[339775931,1727981443173,-500.0,0.0002,2]
[339775933,1727981443183,-500.0,0.0002,2]
[339775935,1727981443192,-500.0,0.0002,2]
[339775937,1727981443202,-500.0,0.0002,2]
[339775939,1727981443211,-500.0,0.0002,2]
[339775941,1727981443221,-500.0,0.0002,2]
[339775943,1727981443230,-500.0,0.0002,2]
[339775945,1727981443240,-500.0,0.0002,2]
[339775947,1727981443250,-500.0,0.0002,2]
[339775949,1727981443260,-500.0,0.0002,2]
[339775951,1727981443270,-500.0,0.0002,2]
[339775952,1727981443280,-500.0,0.0002,2]
[339775954,1727981443290,-500.0,0.0002,2]
[339775956,1727981443299,-500.0,0.0002,2]
[339775958,1727981443308,-500.0,0.0002,2]
[339775960,1727981443318,-500.0,0.0002,2]
[339775962,1727981443339,-500.0,0.0002,2]
[339775964,1727981443348,-500.0,0.0002,2]
[339775966,1727981443357,-500.0,0.0002,2]
[339775968,1727981443366,-500.0,0.0002,2]
[339775970,1727981443375,-500.0,0.0002,2]
[339775971,1727981443385,-500.0,0.0002,2]
[339775973,1727981443394,-500.0,0.0002,2]
[339775975,1727981443404,-500.0,0.0002,2]
[339775977,1727981443413,-500.0,0.0002,2]
[339775979,1727981443422,-500.0,0.0002,2]
[339775980,1727981443431,-500.0,0.0002,2]
[339775981,1727981443440,-500.0,0.0002,2]
[339775982,1727981443449,-500.0,0.0002,2]
[339775983,1727981443459,-500.0,0.0002,2]
[339775984,1727981443468,-500.0,0.0002,2]
[339775985,1727981443477,-500.0,0.0002,2]
[339775986,1727981443487,-500.0,0.0002,2]
[339775987,1727981443496,-500.0,0.0002,2]
[339775988,1727981443505,-500.0,0.0002,2]
[339775989,1727981443515,-500.0,0.0002,2]
[339775990,1727981443524,-500.0,0.0002,2]
[339775991,1727981443533,-500.0,0.0002,2]
[339775992,1727981443542,-500.0,0.0002,2]
[339775993,1727981443552,-500.0,0.0002,2]
[339775994,1727981443562,-500.0,0.0002,2]
[339775995,1727981443574,-500.0,0.0002,2]
[339775996,1727981443584,-1000.0,0.0002,2]
[339775997,1727981443593,-1300.0,0.0002,2]
[339775998,1727981443602,-245.69541615,0.00020275,2]
[339775999,1727981443612,-150.4,0.00020548,2]
[339776000,1727981443621,-500.0,0.00020655,2]
[339776001,1727981443630,-500.0,0.00020664,2]
[339776002,1727981443639,-500.0,0.00020672,2]
[339776003,1727981443649,-500.0,0.00020681,2]
[339776004,1727981443658,-500.0,0.0002069,2]
[339776005,1727981443667,-500.0,0.00020699,2]
[339776006,1727981443677,-500.0,0.00020708,2]
[339776007,1727981443686,-500.0,0.00020716,2]
[339776008,1727981443695,-500.0,0.00020725,2]
[339776009,1727981443705,-500.0,0.00020734,2]
[339776010,1727981443715,-500.0,0.00020743,2]
[339776011,1727981443724,-500.0,0.00020752,2]
[339776012,1727981443734,-700.0,0.00020752,2]
[339776013,1727981443743,-1800.0,0.00020752,2]
[339776014,1727981443752,-5600.0,0.00020752,2]
[339776015,1727981443762,-7900.0,0.00020752,2]
[339776016,1727981443771,-500.0,0.0002076,2]
[339776017,1727981443780,-500.0,0.00020769,2]
[339776018,1727981443790,-500.0,0.00020778,2]
[339776019,1727981443800,-500.0,0.00020787,2]
[339776020,1727981443809,-11893.68498235,0.00020789,2]
[339776021,1727981443819,-500.0,0.00020796,2]
[339776022,1727981443829,-500.0,0.00020804,2]
[339776023,1727981443839,-500.0,0.00020813,2]
[339776024,1727981443849,-500.0,0.00020822,2]
[339776025,1727981443858,-500.0,0.00020831,2]
[339776026,1727981443868,-500.0,0.0002084,2]
[339776027,1727981443878,-500.0,0.00020848,2]
[339776028,1727981443887,-500.0,0.00020857,2]
[339776029,1727981443896,-500.0,0.00020866,2]
[339776030,1727981443906,-500.0,0.00020875,2]
[339776031,1727981443915,-500.0,0.00020884,2]
[339776032,1727981443925,-500.0,0.00020892,2]
[339776033,1727981443934,-500.0,0.00020901,2]
[339776034,1727981443944,-500.0,0.0002091,2]
[339776035,1727981444165,-500.0,0.00020919,2]
[339776036,1727981444175,-500.0,0.00020928,2]
[339776037,1727981444185,-151.0,0.00020928,2]
[339776038,1727981444195,-203.552928,0.00020928,2]
[339776039,1727981444204,-203.552928,0.00020928,2]
[339776040,1727981444214,-151.0,0.00020928,2]
[339776041,1727981444223,-299.681003,0.00020928,2]
[339776042,1727981444232,-702.859464,0.00020928,2]
[339776043,1727981444242,-702.859464,0.00020928,2]
[339776044,1727981444252,-500.0,0.00020936,2]
[339776045,1727981444263,-500.0,0.00020945,2]
[339776046,1727981444272,-500.0,0.00020954,2]
[339776047,1727981444282,-500.0,0.00020963,2]
[339776048,1727981444291,-500.0,0.00020972,2]
[339776049,1727981444301,-500.0,0.0002098,2]
[339776050,1727981444310,-500.0,0.00020989,2]
[339776051,1727981444320,-500.0,0.00020998,2]
[339776052,1727981444331,-150.0,0.00021,2]
[339776053,1727981444340,-168.01,0.0002137,2]
[339776054,1727981444350,-3000.0,0.000214,2]
[339776055,1727981444359,-151.0,0.00021615,2]
[339776056,1727981444368,-259.09,0.00021834,2]
[339776057,1727981444378,-700.0,0.00021848,2]
[339776058,1727981444388,-1800.0,0.00021848,2]
[339776059,1727981444397,-5600.0,0.00021848,2]
[339776060,1727981444407,-7900.0,0.00021848,2]
[339776061,1727981444416,-498.69055851,0.000219,2]
[339776062,1727981444426,-181.0,0.000219,2]
[339776063,1727981444435,-584.20770668,0.00021917,2]
[339776064,1727981444445,-1498.87,0.00021918,2]
[339776065,1727981444457,-150.4,0.00021918,2]
[339776066,1727981444467,-173.0,0.00022,2]
[339776067,1727981444476,-835.80562248,0.00022112,2]
[339776068,1727981444485,-423.25,0.00022329,2]
[339776069,1727981444495,-1144.39,0.00022329,2]
[339776070,1727981444505,-1000.0,0.00022466,2]
[339776071,1727981444516,-859.82,0.000229,14]
[339776072,1727981444525,-700.0,0.00022944,2]
[339776073,1727981444535,-1800.0,0.00022944,2]
[339776074,1727981444545,-5600.0,0.00022944,2]
[339776075,1727981444557,-7900.0,0.00022944,2]
[339776076,1727981444566,-173.0,0.00023014,2]
[339776077,1727981444578,-500.0,0.00023117,120]
[339776078,1727981444588,-200.0,0.0002323,120]
[339776079,1727981444598,-5800.0,0.00023287,2]
[339776080,1727981444609,-150.4,0.00023288,2]
[339776081,1727981444619,-245.69541615,0.000234,2]
[339776082,1727981444629,-700.0,0.0002404,2]
[339776083,1727981444639,-1800.0,0.0002404,2]
[339776084,1727981444648,-5600.0,0.0002404,2]
[339776085,1727981444658,-7900.0,0.0002404,2]
[339776086,1727981444667,-259.09,0.00024098,2]
[339776087,1727981444677,-3000.0,0.000241,2]
[339776088,1727981444686,-150.4,0.00024658,2]
[339776089,1727981444696,-200.0,0.00024726,120]
[339776090,1727981444705,-575.21,0.0002498,2]
[339776091,1727981444715,-3000.0,0.00025,30]
[339776092,1727981444724,-168.01,0.00025205,2]
[339776093,1727981444734,-152.0,0.00025744,3]
[339776094,1727981444744,-200.0,0.00026221,120]
[339776095,1727981444754,-700.0,0.00026232,2]
[339776096,1727981444763,-1800.0,0.00026232,2]
[339776097,1727981444773,-5600.0,0.00026232,2]
[339776098,1727981444783,-7900.0,0.00026232,2]
[339776099,1727981444793,-259.09,0.00026362,2]
[339776100,1727981444803,-245.69541615,0.00026525,2]
[339776101,1727981444812,-3000.0,0.000268,2]
[339776102,1727981444825,-754.34,0.00026959,2]
[339776103,1727981444835,-423.3,0.00026959,2]
[339776104,1727981444845,-423.3,0.00026959,2]
[339776105,1727981444854,-754.34,0.00026959,2]
[339776106,1727981444864,-423.3,0.00026959,2]
[339776107,1727981444874,-754.34,0.00026959,2]
[339776108,1727981444883,-754.34,0.00026959,2]
[339776109,1727981444894,-423.3,0.00026959,2]
[339776110,1727981444903,-423.3,0.00026959,2]
[339776111,1727981444913,-754.34,0.00026959,2]
[339776112,1727981444923,-638.92,0.00026959,2]
[339776113,1727981444932,-845.06,0.00026959,2]
[339776114,1727981444942,-150.0,0.00027,2]
[339776115,1727981444952,-151.0,0.00027019,2]
[339776116,1727981444961,-150.0,0.00027397,2]
[339776117,1727981444971,-5262.44,0.00027397,10]
[339776118,1727981444980,-329.0,0.000274,2]
[339776119,1727981444991,-181.0828668,0.000274,2]
[339776120,1727981445003,-1000.0,0.00027599,2]
[339776121,1727981445012,-200.0,0.00027716,120]
[339776122,1727981445022,-1000.0,0.000281,2]
[339776123,1727981445032,-152.0,0.00028101,4]
[339776124,1727981445042,-700.0,0.00028424,2]
[339776125,1727981445052,-1800.0,0.00028424,2]
[339776126,1727981445062,-5600.0,0.00028424,2]
[339776127,1727981445073,-7900.0,0.00028424,2]
[339776128,1727981445083,-2500.0,0.00028621,5]
[339776129,1727981445092,-259.09,0.00028625,2]
[339776130,1727981445102,-1000.0,0.00028767,30]
[339776131,1727981445111,-1018.75855921,0.00028767,30]
[339776132,1727981445121,-50955.06094646,0.0002888,2]
[339776133,1727981445141,-49755.18717018,0.0002888,2]
[339776134,1727981445152,-228795.93175319,0.0002888,2]
[339776135,1727981445163,-5794.33161275,0.0002888,2]
[339776136,1727981445182,-2287.90723869,0.0002888,2]
[339776137,1727981445193,-2961.95,0.0002888,2]
[339776138,1727981445204,-707.12336694,0.0002888,2]
[339776139,1727981445215,-13256.87732019,0.0002888,2]
[339776140,1727981445227,-5339.53967571,0.0002888,2]
[339776141,1727981445236,-151.0,0.0002888,7]
[339776142,1727981445245,-2268.78327386,0.0002888,7]
[339776143,1727981445257,-683.45512214,0.0002888,7]
[339776144,1727981445267,-543.20637334,0.0002888,7]
[339776145,1727981445279,-1819.99999776,0.0002888,7]
[339776146,1727981445299,-352.75909744,0.0002888,7]
[339776147,1727981445311,-236.27292746,0.0002888,7]
[339776148,1727981445321,-162.98,0.00028963,2]
[339776149,1727981445331,-710.28764755,0.00028977,35]
[339776150,1727981445342,-2595.40584699,0.00028977,35]
[339776151,1727981445354,-11911.64855225,0.00028977,35]
[339776152,1727981445366,-4748.87141543,0.00028977,35]
[339776153,1727981445376,-3827.67018324,0.00028977,35]
[339776154,1727981445397,-342.108,0.00028977,35]
[339776155,1727981445410,-16766.11036729,0.00028977,35]
[339776156,1727981445421,-853.3702418,0.00028977,35]
[339776157,1727981445430,-3202.35628941,0.00028977,35]
[339776158,1727981445440,-275.49908966,0.00028977,35]
[339776159,1727981445449,-1002.2734615,0.00029,2]
[339776160,1727981445459,-151.0,0.00029,7]
[339776161,1727981445469,-702.859464,0.00029,7]
[339776162,1727981445479,-702.859464,0.00029,7]
[339776163,1727981445489,-1000.0,0.00029,2]
[339776164,1727981445499,-1000.0,0.00029021,80]
[339776165,1727981445509,-905.97684149,0.00029021,120]
[339776166,1727981445521,-18918.55938786,0.00029021,120]
[339776167,1727981445537,-1067.39875399,0.00029021,120]
[339776168,1727981445549,-387.72733961,0.00029021,120]
[339776169,1727981445560,-4905.37844259,0.00029021,120]
[339776170,1727981445573,-298.31412405,0.00029021,120]
[339776172,1727981445667,-527.39556223,0.00029021,120]
[339776174,1727981445679,-339.03182057,0.00029021,120]
[339776175,1727981445690,-2901.81724721,0.00029021,120]
[339776176,1727981445699,-1862.78275278,0.00029021,120]
[339776199,1727981446678,-500.0,0.00029021,120]
[339776200,1727981446696,-370.61820372,0.00029021,120]
[339776201,1727981446710,-6555.56283575,0.00029021,120]
[339776202,1727981446719,-3830.81716425,0.00029021,120]
[339776203,1727981446731,-5203.47580105,0.00029021,120]
[339776204,1727981446742,-827.37773051,0.00029021,120]
[339776205,1727981446754,-734.71266188,0.00029021,120]
[339776206,1727981446774,-131037.11836406,0.00029021,120]
[339776207,1727981446785,-1000.0,0.00029021,120]
[339776208,1727981446798,-50213.0,0.00029021,4]
[339776209,1727981446808,-168.01,0.00029041,2]
[339776210,1727981446819,-151.0,0.00029043,7]
[339776211,1727981446835,-203.552928,0.00029043,7]
[339776212,1727981446844,-203.552928,0.00029043,7]
[339776213,1727981446854,-150.0,0.00029088,120]
[339776214,1727981446863,-150.0,0.00029169,120]
[339776215,1727981446873,-533.9,0.00029201,2]
[339776216,1727981446882,-150.0,0.00029258,120]
[339776217,1727981446891,-77548.206454,0.00029281,7]
[339776218,1727981446901,-131338.692124,0.00029281,7]
[339776219,1727981446910,-25488.85967251,0.00029281,7]
[339776220,1727981446921,-302.23,0.00029281,7]
[339776221,1727981446932,-300.1,0.00029281,7]
[339776222,1727981446943,-307.38558639,0.00029281,7]
[339776223,1727981446954,-274.264,0.00029281,7]
[339776224,1727981446966,-309.865,0.00029281,7]
[339776225,1727981446978,-1045.14,0.00029281,7]
[339776226,1727981447454,-2057.28,0.00029281,7]
[339776227,1727981447466,-641.85958326,0.00029281,7]
[339776228,1727981447480,-16137.75918031,0.00029281,7]
[339776229,1727981447491,-471.52007595,0.00029281,7]
[339776230,1727981447571,-17645.626209,0.00029281,7]
[339776231,1727981447583,-16586.96867989,0.00029281,7]
[339776232,1727981447594,-16774.24069954,0.00029281,7]
[339776233,1727981447606,-659.44059965,0.00029281,7]
[339776234,1727981447617,-647.46735558,0.00029281,7]
[339776235,1727981447655,-30217.17895792,0.00029281,7]
[339776236,1727981447664,-151.0,0.00029281,7]
[339776237,1727981447674,-702.859464,0.00029281,7]
[339776238,1727981447683,-702.859464,0.00029281,7]
[339776239,1727981447693,-1000.12144072,0.000295,2]
[339776240,1727981447703,-151.58298,0.00029542,2]
[339776241,1727981447712,-3000.0,0.000296,2]
[339776242,1727981447722,-245.69541615,0.00029651,2]
[339776243,1727981447731,-900.0,0.000298,30]
[339776244,1727981447740,-903.02,0.000298,30]
[339776245,1727981447750,-592.752028,0.000298,7]
[339776246,1727981447760,-592.752028,0.000298,7]
[339776247,1727981447769,-151.0,0.000298,7]
[339776248,1727981447778,-2952.238396,0.000298,7]
[339776249,1727981447789,-2952.238396,0.000298,7]
[339776250,1727981447799,-5330.41738897,0.0002988,15]
[339776251,1727981447810,-536.28001313,0.0002988,15]
[339776252,1727981447821,-30000.0,0.0002988,15]
[339776253,1727981447834,-6236.22999999,0.0002988,15]
[339776254,1727981447853,-392.857998,0.0002988,15]
[339776255,1727981448395,-630.84482896,0.00018582,2]
[339776256,1727981448405,-206.31675494,0.0002988,15]
[339776257,1727981448417,-14992.00992517,0.0002988,15]
[339776258,1727981448426,-12259.5551249,0.000299,2]
[339776259,1727981448437,-1408.82174182,0.000299,2]
[339776260,1727981448448,-270.462826,0.000299,2]
[339776261,1727981448459,-1748.9835148,0.000299,2]
[339776262,1727981448572,-5000.0,0.000299,2]
[339776263,1727981448584,-432.87434618,0.000299,2]
[339776264,1727981448595,-1141.6,0.000299,2]
[339776265,1727981448606,-1973.77783105,0.000299,2]
[339776266,1727981448617,-4203.54536531,0.000299,2]
[339776267,1727981448627,-1073.61091901,0.000299,2]
[339776268,1727981448639,-2189.5392959,0.000299,2]
[339776269,1727981448658,-1261.11299014,0.000299,2]
[339776270,1727981448668,-1138.28203649,0.000299,2]
[339776271,1727981448680,-6646.89595268,0.000299,2]
[339776272,1727981448691,-2146.85550659,0.000299,2]
[339776273,1727981448702,-447.94068644,0.000299,2]
[339776274,1727981448712,-4506.06258621,0.000299,2]
[339776275,1727981448723,-1221.72,0.000299,2]
[339776276,1727981448734,-456.80005735,0.000299,2]
[339776277,1727981448745,-2192.36880359,0.000299,2]
[339776278,1727981448765,-4476.7634141,0.000299,2]
[339776279,1727981448774,-4500.0,0.000299,15]
[339776280,1727981448783,-1614.256628,0.0002992,10]
[339776281,1727981448794,-2000.0,0.0002994,15]
[339776282,1727981448804,-1000.0,0.0002994,10]
[339776283,1727981448813,-1000.0,0.0002996,10]
[339776284,1727981448822,-1000.0,0.0002998,10]
[339776285,1727981448832,-44737.5651534,0.0002999,10]
[339776286,1727981448843,-305.0,0.0002999,10]
[339776287,1727981448854,-3827.9912898,0.0002999,10]
[339776288,1727981448865,-33151.82099365,0.0002999,10]
[339776289,1727981448876,-3382.60191583,0.0002999,10]
[339776290,1727981448887,-606.13570382,0.0002999,10]
[339776291,1727981448898,-690.60504577,0.0002999,10]
[339776292,1727981448909,-926.66902096,0.0002999,10]
[339776293,1727981448920,-4427.48361733,0.0002999,10]
[339776294,1727981448931,-3581.01432309,0.0002999,10]
[339776295,1727981448941,-224.78051089,0.0002999,2]
[339776296,1727981448950,-151.0,0.0002999,7]
[339776297,1727981448959,-112.75337255,0.0002999,7]
[339776298,1727981448971,-38.24662745,0.0002999,7]
[339776299,1727981448980,-151.0,0.0002999,7]
[339776300,1727981448990,-151.0,0.0002999,7]
[339776301,1727981449002,-151.0,0.0002999,7]
[339776302,1727981449012,-151.0,0.0002999,7]
[339776303,1727981449021,-202.005918,0.0002999,7]
[339776304,1727981449030,-202.005918,0.0002999,7]
[339776305,1727981449040,-149.3123429,0.0002999,7]
[339776306,1727981449051,-41.2352751,0.0002999,7]
[339776307,1727981449060,-151.0,0.0002999,7]
[339776308,1727981449070,-151.0,0.0002999,7]
[339776309,1727981449080,-203.552928,0.0002999,7]
[339776310,1727981449090,-203.552928,0.0002999,7]
[339776311,1727981449099,-150.0,0.0003,2]
[339776312,1727981449108,-10617.71918235,0.0003,2]
[339776313,1727981449118,-15265.46223663,0.0003,2]
[339776314,1727981449127,-1717.57020443,0.0003,2]
[339776315,1727981449137,-1008.39321141,0.0003,2]
[339776316,1727981449146,-22885.35234294,0.0003,2]
[339776317,1727981449156,-2000.0,0.0003,2]
[339776318,1727981449165,-2000.0,0.0003,2]
[339776319,1727981449174,-2000.0,0.0003,2]
[339776320,1727981449183,-2000.0,0.0003,2]
[339776321,1727981449192,-177.2937656,0.0003,4]
[339776322,1727981449201,-2000.0,0.0003,2]
[339776323,1727981449210,-150.0,0.0003,22]
[339776324,1727981449219,-208.0,0.0003,2]
[339776325,1727981449229,-1000.0,0.0003,11]
[339776326,1727981449238,-1010.42003436,0.0003,30]
[339776327,1727981449248,-320.0,0.0003,5]
[339776328,1727981449257,-300.0,0.0003,5]
[339776329,1727981449267,-1000.0,0.0003,2]
[339776330,1727981449276,-934.19198323,0.00030023,2]
[339776331,1727981449285,-15351.75,0.000303,30]
[339776332,1727981449294,-245.905234,0.000303,7]
[339776333,1727981449304,-245.905234,0.000303,7]
[339776334,1727981449312,-156.194201,0.000303,30]
[339776335,1727981449322,-152.0,0.00030457,5]
[339776336,1727981449332,-1216.71459358,0.000306,2]
[339776337,1727981449341,-700.0,0.00030616,7]
[339776338,1727981449350,-1800.0,0.00030616,7]
[339776339,1727981449359,-5600.0,0.00030616,7]
[339776340,1727981449369,-7900.0,0.00030616,7]
[339776341,1727981449378,-784.21888165,0.00030697,2]
[339776342,1727981449387,-799.0,0.00030748,5]
[339776343,1727981449396,-150.0,0.00030809,120]
[339776344,1727981449405,-259.09,0.00030889,2]
[339776345,1727981449414,-50000.0,0.00031,31]
[339776346,1727981449423,-3394.0,0.00031,48]
[339776347,1727981449433,-151.0,0.00031,7]
[339776348,1727981449442,-299.588481,0.00031,7]
[339776349,1727981449451,-299.588481,0.00031,7]
[339776350,1727981449460,-151.0,0.00031,7]
[339776351,1727981449470,-151.0,0.00031,7]
[339776352,1727981449479,-10000.0,0.00031,7]
[339776353,1727981449488,-3000.0,0.000311,2]
[339776354,1727981449498,-189.834446,0.000311,7]
[339776355,1727981449507,-189.834446,0.000311,7]
[339776356,1727981449516,-151.0,0.000311,7]
[339776357,1727981449525,-150.0,0.0003113,120]
[339776358,1727981449535,-27004.18732822,0.0003121,2]
[339776359,1727981449544,-151.0,0.0003121,7]
[339776360,1727981449554,-202.005918,0.0003121,7]
[339776361,1727981449563,-202.005918,0.0003121,7]
[339776362,1727981449573,-592.752028,0.0003121,7]
[339776363,1727981449582,-592.752028,0.0003121,7]
[339776364,1727981449591,-2952.238396,0.0003121,7]
[339776365,1727981449600,-2952.238396,0.0003121,7]
[339776366,1727981449610,-151.0,0.0003121,7]
[339776367,1727981449619,-702.859464,0.0003121,7]
[339776368,1727981449628,-702.859464,0.0003121,7]
[339776369,1727981449638,-224.34,0.000313,31]
[339776370,1727981449647,-152.263459,0.0003137,7]
[339776371,1727981449656,-151.0,0.0003137,7]
[339776372,1727981449666,-151.0,0.0003137,7]
[339776373,1727981449675,-451.864952,0.0003137,7]
[339776374,1727981449685,-451.864952,0.0003137,7]
[339776375,1727981449695,-450.87348307,0.0003147,2]
[339776376,1727981449704,-151.0,0.00031487,7]
[339776377,1727981449713,-151.0,0.00031487,7]
[339776378,1727981449723,-151.0,0.00031487,7]
[339776379,1727981449732,-151.0,0.00031487,7]
[339776380,1727981449741,-151.0,0.00031487,7]
[339776381,1727981449751,-151.0,0.00031487,7]
[339776382,1727981449761,-151.0,0.00031487,7]
[339776383,1727981449771,-151.0,0.00031487,7]
[339776384,1727981449780,-218.603132,0.00031487,7]
[339776385,1727981449790,-190.547618,0.00031487,7]
[339776386,1727981449800,-151.0,0.00031487,7]
[339776387,1727981449809,-150.0,0.00031487,2]
[339776388,1727981449819,-150.0,0.00031487,2]
[339776389,1727981449835,-150.0,0.00031487,2]
[339776390,1727981449845,-150.0,0.00031487,2]
[339776391,1727981449854,-150.0,0.00031487,2]
[339776392,1727981449864,-150.0,0.00031487,2]
[339776393,1727981449874,-150.0,0.00031487,2]
[339776394,1727981449884,-150.0,0.00031487,2]
[339776395,1727981449894,-150.0,0.00031487,2]
[339776396,1727981449903,-150.0,0.00031487,2]
[339776397,1727981449913,-298.0,0.00031487,2]
[339776398,1727981449922,-600.0,0.000317,15]
[339776399,1727981449932,-50000.0,0.00032,32]
[339776400,1727981449941,-900.0,0.00032,120]
[339776401,1727981449951,-150.0,0.00032,4]
[339776402,1727981449961,-151.0,0.00032,7]
[339776403,1727981449970,-155.833841,0.00032,7]
[339776404,1727981449979,-626.162887,0.00032,7]
[339776405,1727981449989,-151.0,0.00032,7]
[339776406,1727981450001,-151.0,0.00032,7]
[339776407,1727981450011,-151.0,0.00032,7]
[339776408,1727981450020,-4242.650849,0.00032,7]
[339776409,1727981450031,-151.0,0.00032,7]
[339776410,1727981450040,-4242.650849,0.00032,7]
[339776411,1727981450050,-213.241246,0.00032,7]
[339776412,1727981450059,-213.241246,0.00032,7]
[339776413,1727981450069,-151.0,0.00032,7]
[339776414,1727981450080,-151.0,0.00032,7]
[339776415,1727981450090,-1226.423172,0.00032,7]
[339776416,1727981450099,-1226.423172,0.00032,7]
[339776417,1727981450108,-243.727228,0.00032,7]
[339776418,1727981450117,-243.727228,0.00032,7]
[339776419,1727981450127,-150.0,0.00032047,120]
[339776420,1727981450135,-1800.0,0.0003226,7]
[339776421,1727981450144,-5600.0,0.0003226,7]
[339776422,1727981450154,-700.0,0.0003226,7]
[339776423,1727981450164,-5520.25305051,0.0003226,7]
[339776424,1727981450286,-2379.74694949,0.0003226,7]
[339776425,1727981450295,-255.40957687,0.000323,2]
[339776426,1727981450306,-2744.59042313,0.000323,2]
[339776427,1727981450315,-799.0,0.00032366,5]
[339776428,1727981450326,-300.76,0.00032603,2]
[339776429,1727981450335,-428.71,0.00032603,2]
[339776430,1727981450344,-333.39,0.00032603,2]
[339776431,1727981450353,-300.0,0.00032603,2]
[339776432,1727981450363,-358.47,0.00032603,2]
[339776433,1727981450372,-358.47,0.00032603,2]
[339776434,1727981450381,-428.71,0.00032603,2]
[339776435,1727981450390,-300.0,0.00032603,2]
[339776436,1727981450402,-358.47,0.00032603,2]
[339776437,1727981450412,-428.71,0.00032603,2]
[339776438,1727981450421,-427.22,0.00032603,2]
[339776439,1727981450430,-358.47,0.00032603,2]
[339776440,1727981450439,-358.47,0.00032603,2]
[339776441,1727981450448,-340.55586086,0.00032603,2]
[339776443,1727981527031,7560.6365,0.00010145,2]
[339776463,1727982631864,-150.0,0.00010699,2]
[339776464,1727982631874,-2637.35794757,0.000107,2]
[339776465,1727982631886,-2000.0,0.000107,2]
[339776466,1727982631934,-947.11287655,0.000107,2]
[339776467,1727982631946,-17499.52637588,0.000107,2]
[339776468,1727982631956,-1000.0,0.000107,2]
[339776469,1727982631965,-71492.8822,0.000108,2]
[339776470,1727982631975,-229485.9116,0.000108,2]
[339776471,1727982631984,-500.0,0.0001085,2]